fUST/lending_fUST_20240817
["ID","MTS","AMOUNT","RATE_DAILY","PERIOD"]
[335145598,1723890697326,-1556.4,0.00026301,2]
[335145599,1723890697336,-500.23,0.00026301,2]
[335145600,1723890697348,-752.59,0.00026301,2]
[335145601,1723890697357,-611.43,0.00026301,2]
[335145602,1723890697367,-500.0,0.00026301,2]
[335145603,1723890697377,-1406.266005,0.00026301,7]
[335145604,1723890697386,-1406.266005,0.00026301,7]
[335145605,1723890697396,-668.57,0.00026301,2]
[335145606,1723890697405,-500.0,0.00026301,2]
[335145607,1723890697416,-842.04,0.00026301,2]
[335145608,1723890697426,-794.65,0.00026301,2]
[335145609,1723890697435,-500.0,0.00026301,2]
[335145610,1723890697446,-533.77,0.00026301,2]
[335145611,1723890697455,-545.57,0.00026301,2]
[335145612,1723890697465,-588.4,0.00026301,2]
[335145613,1723890697475,-618.32,0.00026301,2]
[335145614,1723890697484,-500.0,0.00026301,2]
[335145615,1723890697494,-500.0,0.00026301,2]
[335145616,1723890697504,-500.28,0.00026301,2]
[335145617,1723890697513,-885.0,0.00026301,2]
[335145618,1723890697522,-864.62,0.00026301,2]
[335145619,1723890697532,-514.86,0.00026301,2]
[335145620,1723890697542,-553.37,0.00026301,2]
[335145621,1723890697553,-693.53,0.00026301,2]
[335145622,1723890697564,-619.18,0.00026301,2]
[335145623,1723890697573,-1400.99,0.00026301,2]
[335145624,1723890697583,-500.0,0.00026301,2]
[335145625,1723890697594,-1038.37,0.00026301,2]
[335145626,1723890697604,-1018.27,0.00026301,2]
[335145627,1723890697614,-500.0,0.00026301,2]
[335145628,1723890697628,-517.68,0.00026301,2]
[335145629,1723890697639,-530.93,0.00026301,2]
[335145630,1723890697651,-655.89,0.00026301,2]
[335145631,1723890697662,-591.89,0.00026301,2]
[335145632,1723890697673,-500.0,0.00026301,2]
[335145633,1723890697683,-1232.8,0.00026301,2]
[335145634,1723890697693,-500.0,0.00026301,2]
[335145635,1723890697702,-500.0,0.00026301,2]
[335145636,1723890697713,-540.39585887,0.00026301,2]
[335145637,1723890697723,-500.0,0.00026301,2]
[335145638,1723890697732,-543.94,0.00026301,2]
[335145639,1723890697743,-571.25,0.00026301,2]
[335145640,1723890697754,-500.0,0.00026301,2]
[335145641,1723890697764,-503.76,0.00026301,2]
[335145642,1723890697777,-725.37,0.00026301,2]
[335145643,1723890697788,-500.0,0.00026301,2]
[335145644,1723890697798,-582.58,0.00026301,2]
[335145645,1723890697809,-739.32,0.00026301,2]
[335145646,1723890697821,-1438.68,0.00026301,2]
[335145647,1723890697832,-2248.55,0.00026301,2]
[335145648,1723890697842,-769.77,0.00026301,2]
[335145649,1723890697854,-657.64,0.00026301,2]
[335145650,1723890697864,-590.2,0.00026301,2]
[335145651,1723890697874,-788.03,0.00026301,2]
[335145652,1723890697884,-2904.2,0.00026301,2]
[335145653,1723890697894,-500.0,0.00026301,2]
[335145654,1723890697903,-500.0,0.00026301,2]
[335145655,1723890697913,-500.0,0.00026301,2]
[335145656,1723890697922,-737.6,0.00026301,2]
[335145657,1723890697931,-1067.82,0.00026301,2]
[335145658,1723890697941,-22187.11,0.00026301,2]
[335145659,1723890697953,-6948.85,0.00026301,2]
[335145660,1723890697963,-668.08,0.00026301,2]
[335145661,1723890697973,-1369.92,0.00026301,2]
[335145662,1723890697985,-1067.8,0.00026301,2]
[335145663,1723890697995,-2952.04,0.00026301,2]
[335145664,1723890698005,-1761.64,0.00026301,2]
[335145665,1723890698015,-1088.19,0.00026301,2]
[335145666,1723890698027,-616.8,0.00026301,2]
[335145667,1723890698037,-1664.5,0.00026301,2]
[335145668,1723890698051,-500.0,0.00026301,2]
[335145669,1723890698064,-869.36,0.00026301,2]
[335145670,1723890698075,-1108.77,0.00026301,2]
[335145671,1723890698085,-905.39,0.00026301,2]
[335145672,1723890698098,-500.0,0.00026301,2]
[335145673,1723890698110,-2520.02,0.00026301,2]
[335145674,1723890698122,-569.78,0.00026301,2]
[335145675,1723890698136,-3853.14,0.00026301,2]
[335145676,1723890698146,-2333.05,0.00026301,2]
[335145677,1723890698157,-679.93,0.00026301,2]
[335145678,1723890698168,-512.91028677,0.00026301,2]
[335145679,1723890698179,-500.0,0.00026301,2]
[335145680,1723890698195,-521.59,0.00026301,2]
[335145681,1723890698206,-2770.69,0.00026301,2]
[335145682,1723890698217,-692.79,0.00026301,2]
[335145683,1723890698229,-500.28,0.00026301,2]
[335145684,1723890698239,-500.0,0.00026301,2]
[335145685,1723890698249,-1389.6,0.00026301,2]
[335145686,1723890698261,-500.0,0.00026301,2]
[335145687,1723890698271,-4570.81,0.00026301,2]
[335145688,1723890698282,-531.66,0.00026301,2]
[335145689,1723890698293,-5109.65955522,0.00026356,2]
[335145690,1723890698303,-821.0,0.00026437,2]
[335145691,1723890698314,-20000.0,0.00026438,2]
[335145692,1723890698325,-810.49,0.00026496,2]
[335145693,1723890698337,-810.49,0.00026496,2]
[335145694,1723890698347,-810.49,0.00026496,2]
[335145695,1723890698359,-810.49,0.00026496,2]
[335145696,1723890698370,-810.55756766,0.00026496,2]
[335145697,1723890698381,-500.0,0.00026496,2]
[335145698,1723890698391,-500.0,0.00026496,2]
[335145699,1723890698401,-500.0,0.00026496,2]
[335145700,1723890698412,-558.56673661,0.00026496,2]
[335145701,1723890698422,-150.95749392,0.0002656,2]
[335145702,1723890698432,-511.96634641,0.00026568,2]
[335145703,1723890698442,-500.0,0.00026568,2]
[335145704,1723890698453,-500.0,0.00026568,2]
[335145705,1723890698464,-500.0,0.00026568,2]
[335145706,1723890698476,-500.0,0.00026568,2]
[335145707,1723890698486,-500.0,0.00026568,2]
[335145708,1723890698497,-500.0,0.00026568,2]
[335145709,1723890698508,-500.0,0.00026568,2]
[335145710,1723890698517,-500.0,0.00026568,2]
[335145711,1723890698644,-500.0,0.00026568,2]
[335145712,1723890698655,-500.0,0.00026568,2]
[335145713,1723890698664,-500.0,0.00026568,2]
[335145714,1723890698673,-500.0,0.00026568,2]
[335145715,1723890698683,-609.60071569,0.00026568,2]
[335145716,1723890698693,-500.0,0.00026568,2]
[335145717,1723890698707,-500.0,0.00026568,2]
[335145718,1723890698717,-500.0,0.00026568,2]
[335145719,1723890698726,-500.0,0.00026568,2]
[335145720,1723890698736,-500.0,0.00026568,2]
[335145721,1723890698746,-500.0,0.00026568,2]
[335145722,1723890698756,-500.0,0.00026568,2]
[335145723,1723890698766,-500.0,0.00026568,2]
[335145724,1723890698775,-500.0,0.00026568,2]
[335145725,1723890698785,-500.0,0.00026568,2]
[335145726,1723890698795,-500.0,0.00026568,2]
[335145727,1723890698804,-509.80356931,0.00026568,2]
[335145728,1723890698814,-494.09680444,0.00026568,2]
[335145729,1723890698823,-500.0,0.00026568,2]
[335145730,1723890698833,-500.0,0.00026568,2]
[335145731,1723890698842,-500.0,0.00026568,2]
[335145732,1723890698851,-500.0,0.00026568,2]
[335145733,1723890698860,-500.0,0.00026568,2]
[335145734,1723890698869,-500.0,0.00026568,2]
[335145735,1723890698879,-500.0,0.00026568,2]
[335145736,1723890698888,-500.0,0.00026568,2]
[335145737,1723890698897,-500.0,0.00026568,2]
[335145738,1723890698910,-500.0,0.00026568,2]
[335145739,1723890698921,-500.0,0.00026568,2]
[335145740,1723890698931,-505.66271014,0.00026568,2]
[335145741,1723890698941,-500.0,0.00026568,2]
[335145742,1723890698956,-500.0,0.00026568,2]
[335145743,1723890698966,-500.0,0.00026568,2]
[335145744,1723890698979,-500.0,0.00026568,2]
[335145745,1723890698989,-501.54,0.00026568,2]
[335145746,1723890699000,-500.0,0.00026568,2]
[335145747,1723890699010,-500.0,0.00026568,2]
[335145748,1723890699021,-500.0,0.00026568,2]
[335145749,1723890699034,-500.0,0.00026568,2]
[335145750,1723890699045,-500.0,0.00026568,2]
[335145751,1723890699059,-500.0,0.00026568,2]
[335145752,1723890699069,-500.0,0.00026568,2]
[335145753,1723890699082,-500.0,0.00026568,2]
[335145754,1723890699091,-1683.39,0.00026568,2]
[335145755,1723890699102,-500.0,0.00026568,2]
[335145756,1723890699113,-500.0,0.00026568,2]
[335145757,1723890699125,-500.0,0.00026568,2]
[335145758,1723890699140,-500.0,0.00026568,2]
[335145759,1723890699153,-500.0,0.00026568,2]
[335145760,1723890699165,-500.0,0.00026568,2]
[335145761,1723890699176,-500.0,0.00026568,2]
[335145762,1723890699186,-500.0,0.00026568,2]
[335145763,1723890699197,-512.87083583,0.00026568,2]
[335145764,1723890699206,-500.0,0.00026568,2]
[335145765,1723890699215,-500.0,0.00026568,2]
[335145766,1723890699226,-506.41093348,0.00026568,2]
[335145767,1723890699236,-500.0,0.00026568,2]
[335145768,1723890699248,-500.0,0.00026568,2]
[335145769,1723890699260,-500.0,0.00026568,2]
[335145770,1723890699271,-500.0,0.00026568,2]
[335145771,1723890699284,-500.0,0.00026568,2]
[335145772,1723890699295,-500.0,0.00026568,2]
[335145773,1723890699305,-500.0,0.00026568,2]
[335145774,1723890699315,-500.0,0.00026568,2]
[335145775,1723890699325,-500.0,0.00026568,2]
[335145776,1723890699335,-500.0,0.00026568,2]
[335145777,1723890699346,-500.0,0.00026568,2]
[335145778,1723890699357,-500.0,0.00026568,2]
[335145779,1723890699367,-500.0,0.00026568,2]
[335145780,1723890699379,-500.0,0.00026568,2]
[335145781,1723890699391,-500.0,0.00026568,2]
[335145782,1723890699402,-500.0,0.00026568,2]
[335145783,1723890699414,-500.0,0.00026568,2]
[335145784,1723890699425,-500.0,0.00026568,2]
[335145785,1723890699435,-381.99140853,0.00026568,2]
[335145786,1723890699448,-500.0,0.00026568,2]
[335145787,1723890699461,-500.0,0.00026568,2]
[335145788,1723890699472,-500.0,0.00026568,2]
[335145789,1723890699484,-500.0,0.00026568,2]
[335145790,1723890699495,-500.0,0.00026568,2]
[335145791,1723890699506,-500.0,0.00026568,2]
[335145792,1723890699517,-500.0,0.00026568,2]
[335145793,1723890699526,-500.0,0.00026568,2]
[335145794,1723890699537,-500.0,0.00026568,2]
[335145795,1723890699549,-500.0,0.00026568,2]
[335145796,1723890699560,-500.0,0.00026568,2]
[335145797,1723890699572,-500.0,0.00026568,2]
[335145798,1723890699584,-500.0,0.00026568,2]
[335145799,1723890699596,-500.0,0.00026568,2]
[335145800,1723890699607,-500.0,0.00026568,2]
[335145801,1723890699617,-500.0,0.00026568,2]
[335145802,1723890699626,-500.0,0.00026568,2]
[335145803,1723890699637,-500.0,0.00026568,2]
[335145804,1723890699647,-500.0,0.00026568,2]
[335145805,1723890699658,-500.0,0.00026568,2]
[335145806,1723890699670,-500.0,0.00026568,2]
[335145807,1723890699681,-500.0,0.00026568,2]
[335145808,1723890699691,-500.0,0.00026568,2]
[335145809,1723890699703,-500.0,0.00026568,2]
[335145810,1723890699713,-500.0,0.00026568,2]
[335145811,1723890699725,-500.0,0.00026568,2]
[335145812,1723890699736,-500.0,0.00026568,2]
[335145813,1723890699747,-500.0,0.00026568,2]
[335145814,1723890699759,-500.0,0.00026568,2]
[335145815,1723890699770,-500.0,0.00026568,2]
[335145816,1723890699781,-500.0,0.00026568,2]
[335145817,1723890699791,-500.0,0.00026568,2]
[335145818,1723890699800,-500.0,0.00026568,2]
[335145819,1723890699811,-500.0,0.00026568,2]
[335145820,1723890699821,-500.0,0.00026568,2]
[335145821,1723890699830,-500.0,0.00026568,2]
[335145822,1723890699841,-508.38791444,0.00026568,2]
[335145823,1723890699853,-500.0,0.00026568,2]
[335145824,1723890699864,-500.0,0.00026568,2]
[335145825,1723890699876,-500.0,0.00026568,2]
[335145826,1723890699888,-500.0,0.00026568,2]
[335145827,1723890699900,-547.89,0.00026568,2]
[335145828,1723890699911,-500.0,0.00026568,2]
[335145829,1723890699922,-500.0,0.00026568,2]
[335145830,1723890699932,-500.0,0.00026568,2]
[335145831,1723890699945,-500.0,0.00026568,2]
[335145832,1723890699956,-500.0,0.00026568,2]
[335145833,1723890699966,-500.0,0.00026568,2]
[335145834,1723890699975,-500.0,0.00026568,2]
[335145835,1723890699986,-500.0,0.00026568,2]
[335145836,1723890699997,-500.0,0.00026568,2]
[335145837,1723890700008,-500.0,0.00026568,2]
[335145838,1723890700019,-500.0,0.00026568,2]
[335145839,1723890700029,-500.0,0.00026568,2]
[335145840,1723890700040,-502.54813661,0.00026568,2]
[335145841,1723890700053,-502.48382303,0.00026568,2]
[335145842,1723890700063,-500.0,0.00026568,2]
[335145843,1723890700073,-500.0,0.00026568,2]
[335145844,1723890700083,-500.0,0.00026568,2]
[335145845,1723890700093,-500.0,0.00026568,2]
[335145846,1723890700103,-500.0,0.00026568,2]
[335145847,1723890700113,-500.0,0.00026568,2]
[335145848,1723890700125,-500.0,0.00026568,2]
[335145849,1723890700135,-765.7,0.00026568,2]
[335145850,1723890700145,-500.0,0.00026568,2]
[335145851,1723890700155,-500.0,0.00026568,2]
[335145852,1723890700166,-500.0,0.00026568,2]
[335145853,1723890700175,-500.0,0.00026568,2]
[335145854,1723890700185,-500.0,0.00026568,2]
[335145855,1723890700194,-500.0,0.00026568,2]
[335145856,1723890700204,-500.0,0.00026568,2]
[335145857,1723890700214,-500.0,0.00026568,2]
[335145858,1723890700224,-589.87772459,0.00026568,2]
[335145859,1723890700234,-500.0,0.00026568,2]
[335145860,1723890700245,-507.65749289,0.00026568,2]
[335145861,1723890700255,-500.0,0.00026568,2]
[335145862,1723890700265,-500.0,0.00026568,2]
[335145863,1723890700274,-500.0,0.00026568,2]
[335145864,1723890700284,-633.9,0.00026568,2]
[335145865,1723890700294,-500.0,0.00026568,2]
[335145866,1723890700303,-500.0,0.00026568,2]
[335145867,1723890700313,-500.0,0.00026568,2]
[335145868,1723890700323,-500.0,0.00026568,2]
[335145869,1723890700332,-500.0,0.00026568,2]
[335145870,1723890700341,-500.0,0.00026568,2]
[335145871,1723890700350,-500.0,0.00026568,2]
[335145872,1723890700360,-500.0,0.00026568,2]
[335145873,1723890700369,-511.50986586,0.00026568,2]
[335145874,1723890700378,-500.0,0.00026568,2]
[335145875,1723890700388,-500.0,0.00026568,2]
[335145876,1723890700398,-500.0,0.00026568,2]
[335145877,1723890700407,-521.11,0.00026568,2]
[335145878,1723890700417,-500.0,0.00026568,2]
[335145879,1723890700426,-500.0,0.00026568,2]
[335145880,1723890700436,-500.0,0.00026568,2]
[335145881,1723890700445,-500.0,0.00026568,2]
[335145882,1723890700455,-500.0,0.00026568,2]
[335145883,1723890700464,-541.97942299,0.00026568,2]
[335145884,1723890700475,-517.91900299,0.00026568,2]
[335145885,1723890700484,-500.0,0.00026568,2]
[335145886,1723890700494,-501.61602314,0.00026568,2]
[335145887,1723890700504,-500.0,0.00026568,2]
[335145888,1723890700513,-500.0,0.00026568,2]
[335145889,1723890700524,-500.0,0.00026568,2]
[335145890,1723890700534,-506.93036892,0.00026568,2]
[335145891,1723890700543,-500.0,0.00026568,2]
[335145892,1723890700554,-775.16,0.00026568,2]
[335145893,1723890700563,-500.0,0.00026568,2]
[335145894,1723890700573,-500.0,0.00026568,2]
[335145895,1723890700583,-500.0,0.00026568,2]
[335145896,1723890700592,-500.0,0.00026568,2]
[335145897,1723890700602,-571.1,0.00026568,2]
[335145898,1723890700612,-500.0,0.00026568,2]
[335145899,1723890700621,-500.0,0.00026568,2]
[335145900,1723890700632,-500.0,0.00026568,2]
[335145901,1723890700641,-500.0,0.00026568,2]
[335145902,1723890700651,-500.0,0.00026568,2]
[335145903,1723890700661,-668.62,0.00026568,2]
[335145904,1723890700671,-500.0,0.00026568,2]
[335145905,1723890700681,-500.0,0.00026568,2]
[335145906,1723890700690,-500.0,0.00026568,2]
[335145907,1723890700701,-204.19364487,0.00026568,2]
[335145908,1723890700710,-500.0,0.00026568,2]
[335145909,1723890700719,-500.0,0.00026568,2]
[335145910,1723890700729,-731.12,0.00026568,2]
[335145911,1723890700739,-500.0,0.00026568,2]
[335145912,1723890700749,-632.17,0.00026568,2]
[335145913,1723890700759,-500.0,0.00026568,2]
[335145914,1723890700768,-500.0,0.00026568,2]
[335145915,1723890700779,-593.02,0.00026568,2]
[335145916,1723890700789,-500.0,0.00026568,2]
[335145917,1723890700800,-500.0,0.00026568,2]
[335145918,1723890700810,-656.84,0.00026568,2]
[335145919,1723890700820,-500.0,0.00026568,2]
[335145920,1723890700831,-500.0,0.00026568,2]
[335145921,1723890700840,-633.28,0.00026568,2]
[335145922,1723890700849,-500.0,0.00026568,2]
[335145923,1723890700859,-500.0,0.00026568,2]
[335145924,1723890700869,-217.668022,0.00026568,7]
[335145925,1723890700879,-500.0,0.00026568,2]
[335145926,1723890700889,-864.264814,0.00026568,7]
[335145927,1723890700899,-500.0,0.00026568,2]
[335145928,1723890700909,-217.668022,0.00026568,7]
[335145929,1723890700919,-864.264821,0.00026568,7]
[335145930,1723890700929,-504.21034984,0.00026568,2]
[335145931,1723890700939,-521.1,0.00026568,2]
[335145932,1723890700949,-500.0,0.00026568,2]
[335145933,1723890700959,-500.0,0.00026568,2]
[335145934,1723890700969,-500.0,0.00026568,2]
[335145935,1723890700979,-500.0,0.00026568,2]
[335145936,1723890700989,-500.0,0.00026568,2]
[335145937,1723890700999,-500.0,0.00026568,2]
[335145938,1723890701009,-500.0,0.00026568,2]
[335145939,1723890701019,-500.0,0.00026568,2]
[335145940,1723890701028,-500.0,0.00026568,2]
[335145941,1723890701039,-500.0,0.00026568,2]
[335145942,1723890701052,-500.0,0.00026568,2]
[335145943,1723890701061,-500.0,0.00026568,2]
[335145944,1723890701071,-500.0,0.00026568,2]
[335145945,1723890701081,-154.21227736,0.00026568,2]
[335145946,1723890701091,-514.66552289,0.00026568,2]
[335145947,1723890701100,-764.51,0.00026568,2]
[335145948,1723890701110,-500.0,0.00026568,2]
[335145949,1723890701120,-500.0,0.00026568,2]
[335145950,1723890701129,-500.0,0.00026568,2]
[335145951,1723890701140,-500.0,0.00026568,2]
[335145952,1723890701150,-500.0,0.00026568,2]
[335145953,1723890701159,-625.26,0.00026568,2]
[335145954,1723890701169,-500.0,0.00026568,2]
[335145955,1723890701178,-625.29,0.00026568,2]
[335145956,1723890701188,-500.0,0.00026568,2]
[335145957,1723890701198,-500.0,0.00026568,2]
[335145958,1723890701208,-500.0,0.00026568,2]
[335145959,1723890701218,-500.0,0.00026568,2]
[335145960,1723890701228,-507.95205839,0.00026568,2]
[335145961,1723890701238,-500.0,0.00026568,2]
[335145962,1723890701247,-507.62221857,0.00026568,2]
[335145963,1723890701257,-500.0,0.00026568,2]
[335145964,1723890701266,-500.0,0.00026568,2]
[335145965,1723890701276,-500.0,0.00026568,2]
[335145966,1723890701286,-500.0,0.00026568,2]
[335145967,1723890701296,-500.0,0.00026574,2]
[335145968,1723890701305,-500.0,0.00026574,2]
[335145969,1723890701315,-1302.46,0.00026574,2]
[335145970,1723890701325,-3815.52,0.00026574,2]
[335145971,1723890701335,-1463.19,0.00026574,2]
[335145972,1723890701345,-1313.81,0.00026574,2]
[335145973,1723890701355,-557.32,0.00026574,2]
[335145974,1723890701365,-4587.93,0.00026574,2]
[335145975,1723890701375,-1281.48,0.00026574,2]
[335145976,1723890701384,-1296.99,0.00026574,2]
[335145977,1723890701394,-201.50959232,0.00026574,2]
[335145978,1723890701403,-1380.37,0.00026574,2]
[335145979,1723890701413,-500.0,0.00026574,2]
[335145980,1723890701423,-3297.99,0.00026574,2]
[335145981,1723890701433,-500.0,0.00026574,2]
[335145982,1723890701444,-2369.1,0.00026574,2]
[335145983,1723890701454,-3259.07,0.00026574,2]
[335145984,1723890701465,-2059.73,0.00026574,2]
[335145985,1723890701476,-558.53,0.00026574,2]
[335145986,1723890701488,-516.38098276,0.00026574,2]
[335145987,1723890701499,-1089.27,0.00026574,2]
[335145988,1723890701511,-500.0,0.00026574,2]
[335145989,1723890701521,-4118.73,0.00026574,2]
[335145990,1723890701532,-537.86,0.00026574,2]
[335145991,1723890701543,-500.0,0.00026574,2]
[335145992,1723890701553,-503.77429345,0.00026575,2]
[335145993,1723890701564,-292.21122315,0.00026575,2]
[335145994,1723890701574,-500.0,0.00026575,2]
[335145995,1723890701584,-500.0,0.00026575,2]
[335145996,1723890701596,-500.0,0.00026575,2]
[335145997,1723890701608,-500.0,0.00026575,2]
[335145998,1723890701619,-575.75,0.00026575,2]
[335145999,1723890701630,-500.0,0.00026575,2]
[335146000,1723890701640,-528.48,0.00026575,2]
[335146001,1723890701650,-500.0,0.00026575,2]
[335146002,1723890701659,-502.49454523,0.00026575,2]
[335146003,1723890701669,-500.0,0.00026575,2]
[335146004,1723890701678,-640.53157856,0.00026575,2]
[335146005,1723890701688,-505.55324169,0.00026575,2]
[335146006,1723890701699,-885.91,0.00026575,2]
[335146007,1723890701708,-500.0,0.00026575,2]
[335146008,1723890701717,-500.0,0.00026575,2]
[335146009,1723890701726,-500.0,0.00026575,2]
[335146010,1723890701737,-250.66377392,0.00026575,2]
[335146011,1723890701748,-642.6,0.00026575,2]
[335146012,1723890701761,-529.2,0.00026575,2]
[335146013,1723890701771,-500.0,0.00026575,2]
[335146014,1723890701782,-3128.21,0.00026575,2]
[335146015,1723890701793,-500.0,0.00026575,2]
[335146016,1723890701805,-500.55,0.00026575,2]
[335146017,1723890701814,-500.0,0.00026575,2]
[335146018,1723890701825,-504.06955807,0.00026575,2]
[335146019,1723890701835,-1197.09,0.00026575,2]
[335146020,1723890701847,-663.25,0.00026575,2]
[335146021,1723890701859,-553.57,0.00026575,2]
[335146022,1723890701869,-500.0,0.00026575,2]
[335146023,1723890701881,-833.32,0.00026575,2]
[335146024,1723890701891,-506.32870611,0.00026575,2]
[335146025,1723890701902,-593.58,0.00026575,2]
[335146026,1723890701913,-635.22,0.00026575,2]
[335146027,1723890701922,-500.0,0.00026575,2]
[335146028,1723890701932,-1678.22,0.00026575,2]
[335146029,1723890701943,-500.0,0.00026575,2]
[335146030,1723890701954,-523.73,0.00026575,2]
[335146031,1723890701964,-500.0,0.00026575,2]
[335146032,1723890701977,-929.06,0.00026575,2]
[335146033,1723890701988,-500.0,0.00026575,2]
[335146034,1723890701999,-500.0,0.00026575,2]
[335146035,1723890702010,-500.0,0.00026575,2]
[335146036,1723890702021,-5055.53,0.00026575,2]
[335146037,1723890702032,-726.16,0.00026575,2]
[335146038,1723890702043,-651.69,0.00026575,2]
[335146039,1723890702172,-1917.36,0.00026575,2]
[335146040,1723890702193,-500.0,0.00026575,2]
[335146041,1723890702204,-500.0,0.00026575,2]
[335146042,1723890702213,-785.84,0.00026575,2]
[335146043,1723890702224,-557.09231499,0.00026575,2]
[335146044,1723890702234,-542.57,0.00026575,2]
[335146045,1723890702245,-501.64,0.00026575,2]
[335146046,1723890702255,-1010.89,0.00026575,2]
[335146047,1723890702264,-530.09,0.00026575,2]
[335146048,1723890702273,-605.21,0.00026575,2]
[335146049,1723890702282,-751.83,0.00026575,2]
[335146050,1723890702292,-500.0,0.00026575,2]
[335146051,1723890702301,-1556.4,0.00026575,2]
[335146052,1723890702311,-500.23,0.00026575,2]
[335146053,1723890702322,-752.59,0.00026575,2]
[335146054,1723890702332,-611.43,0.00026575,2]
[335146055,1723890702342,-500.0,0.00026575,2]
[335146056,1723890702353,-668.57,0.00026575,2]
[335146057,1723890702362,-500.0,0.00026575,2]
[335146058,1723890702372,-842.04,0.00026575,2]
[335146059,1723890702385,-794.65,0.00026575,2]
[335146060,1723890702395,-500.0,0.00026575,2]
[335146061,1723890702405,-533.77,0.00026575,2]
[335146062,1723890702415,-545.57,0.00026575,2]
[335146063,1723890702426,-588.4,0.00026575,2]
[335146064,1723890702436,-618.32,0.00026575,2]
[335146065,1723890702447,-500.0,0.00026575,2]
[335146066,1723890702456,-500.0,0.00026575,2]
[335146067,1723890702466,-500.28,0.00026575,2]
[335146068,1723890702477,-1215.121657,0.00026575,7]
[335146069,1723890702488,-1215.121657,0.00026575,7]
[335146070,1723890702498,-885.0,0.00026575,2]
[335146071,1723890702507,-864.62,0.00026575,2]
[335146072,1723890702517,-514.86,0.00026575,2]
[335146073,1723890702527,-553.37,0.00026575,2]
[335146074,1723890702536,-693.53,0.00026575,2]
[335146075,1723890702547,-619.18,0.00026575,2]
[335146076,1723890702557,-1400.99,0.00026575,2]
[335146077,1723890702567,-417.03474701,0.00026575,2]
[335146078,1723890702579,-1038.37,0.00026575,2]
[335146079,1723890702590,-1018.27,0.00026575,2]
[335146080,1723890702602,-500.0,0.00026575,2]
[335146081,1723890702614,-517.68,0.00026575,2]
[335146082,1723890702623,-530.93,0.00026575,2]
[335146083,1723890702633,-655.89,0.00026575,2]
[335146084,1723890702643,-591.89,0.00026575,2]
[335146085,1723890702653,-500.0,0.00026575,2]
[335146086,1723890702662,-1232.8,0.00026575,2]
[335146087,1723890702671,-500.0,0.00026575,2]
[335146088,1723890702681,-500.0,0.00026575,2]
[335146089,1723890702691,-505.76315986,0.00026575,2]
[335146090,1723890702701,-543.94,0.00026575,2]
[335146091,1723890702711,-571.25,0.00026575,2]
[335146092,1723890702722,-500.0,0.00026575,2]
[335146093,1723890702734,-503.76,0.00026575,2]
[335146094,1723890702745,-725.37,0.00026575,2]
[335146095,1723890702755,-500.0,0.00026575,2]
[335146096,1723890702765,-582.58,0.00026575,2]
[335146097,1723890702777,-739.32,0.00026575,2]